Cogmind - Beta 10.2 @@@ ROGUE MODE // 2021.01.11 @ 18:03:56 Player: PhenomPhear Result: Destroyed by as-28323 with Assembled Rifle Performance ------------- Evolutions (0) 0 Regions Visited (2) 400 Robots Destroyed (17) 85 Value Destroyed (378) 378 Prototype IDs (0) 0 Alien Tech Used (0) 0 Bonus (-18) -18 TOTAL SCORE: 845 Bonus ------- Friendly Fire -18 Cogmind --------- Core Integrity 0/250 Matter 0/300 Energy 99/100 System Corruption 1% Temperature Cool (0) Movement Treading (180) Ox1 Location -10/Mines Parts ------- > --- POWER (1) -------- (None) > --- PROPULSION (2) --- Improved Treads Compact Wheel > --- UTILITY (2) ------ High-capacity Storage Unit Armor Integrity Analyzer > --- WEAPON (2) ------- Grenade Launcher Plasma Cutter > --- INVENTORY (12) --- Light Nuclear Core High-capacity Storage Unit Large Matter Pod (24) Peak State ------------ > --- POWER ------------ Ion Engine > --- PROPULSION ------- Improved Treads Improved Treads > --- UTILITY ---------- Cooling System High-capacity Storage Unit > --- WEAPON ----------- Particle Gun Particle Gun > --- INVENTORY -------- Ion Engine Light Treads Medium Storage Unit High-capacity Storage Unit Large Matter Pod Light Armor Plating Light Armor Plating EM Pulse Gun Light Assault Rifle Grenade Launcher Grenade Launcher Plasma Cutter [Rating: 13] Favorites ----------- Power Ion Engine Engine Ion Engine Propulsion Light Treads Treads Light Treads Wheel Compact Wheel Utility High-capacity Storage Unit Device Cooling System Storage High-capacity Storage Unit Processor Armor Integrity Analyzer Protection Light Armor Plating Weapon Particle Gun Energy Gun Particle Gun Ballistic Gun Light Assault Rifle Launcher Grenade Launcher Special Weapon Plasma Cutter Build | -11 -10 -10 ------- Run | Scr Mat Min Slots Evolved . | . . . Power . | . . . Propulsion . | . . . Utility . | . . . Weapon . | . . . Parts Attached 30 | 8 11 11 Power 2 | 1 . 1 Engine 2 | 1 . 1 Core . | . . . Reactor . | . . . Propulsion 9 | 4 2 3 Treads 6 | 2 2 2 Leg . | . . . Wheel 3 | 2 . 1 Hover . | . . . Flight . | . . . Utility 6 | 1 2 3 Device 1 | . 1 . Storage 2 | 1 1 . Processor 1 | . . 1 Hackware . | . . . Protection 2 | . . 2 Artifact . | . . . Weapon 13 | 2 7 4 Energy Gun 7 | 1 5 1 Energy Cannon . | . . . Ballistic Gun 1 | 1 . . Ballistic Cannon . | . . . Launcher 3 | . 1 2 Special Weapon 2 | . 1 1 Impact Weapon . | . . . Slashing Weapon . | . . . Piercing Weapon . | . . . Special Melee Weapon . | . . . Unidentified Prototypes . | . . . Parts Lost 15 | . 4 11 Power 1 | . . 1 Propulsion 4 | . 1 3 Utility 3 | . . 3 Weapon 7 | . 3 4 Highest Loss Streak 11 | . 3 11 Average Slot Usage (%) 87 | . 88 85 Engine 13 | . 14 10 Treads 22 | . 22 22 Device 8 | . 9 7 Storage 17 | . 18 14 Energy Gun 12 | . 12 14 Ballistic Gun 3 | . 4 . Launcher 5 | . 5 6 Naked Turns . | . . . Heaviest Build 45 | 11 45 45 Greatest Support 46 | 40 46 46 Greatest Overweight (x) 2 | . 2 1 Average Overweight (x) . | . 1 . Largest Inventory Capacity 14 | 6 14 12 Average Capacity 11 | 4 12 12 Most Carried 12 | 2 12 12 Average Carried 6 | . 7 8 Final Capacity 12 | 6 12 12 Final Carried 12 | 2 12 3 Class Distribution -------------------- 100% | Mutant Dominant Class ---------------- Mutant | -10/Materials Mutant | -10/Mines Resources | -11 -10 -10 ----------- Run | Scr Mat Min Matter Collected 444 | 282 68 94 Remotely . | . . . Salvage Created 565 | 54 350 161 Parts 35 | . 20 15 Haulers Intercepted 1 | . 1 . Recyclers Shooed . | . . . Parts Field Recycled . | . . . Retrieved Matter . | . . . Parts Self-Destructed . | . . . Prevented . | . . . Kills | -11 -10 -10 ------- Run | Scr Mat Min Combat Hostiles Destroyed 13 | . 7 6 Guns 9 | . 7 2 AOE 4 | . . 4 Classes Destroyed 9 | 1 4 4 Worker 1 | . . 1 Tunneler 2 | . . 2 Hauler 1 | . 1 . Recycler 2 | 1 1 . Operator 1 | . 1 . Swarmer 3 | . 3 . Grunt 6 | . 4 2 Demolisher 1 | . . 1 Assembled 3 | . . 3 Best Kill Streak 3 | 1 3 3 Combat Bots Only 3 | . 3 2 Max Kills in Single Turn 2 | 1 1 2 Gunslinging . | . . . Exploded 1 | . . 1 Melee . | . . . Uniques/NPCs Destroyed . | . . . Combat | -11 -10 -10 -------- Run | Scr Mat Min Damage Taken 1887 | . 526 1361 Core 253 | . 50 203 Absorbed by Shields . | . . . Core Remaining (%) 100 | 100 . . Volleys Fired 66 | 2 25 39 Largest 2 | 2 2 2 Hottest 130 | 60 130 130 Shots Fired 98 | 4 46 48 Gun 69 | 4 44 21 Cannon . | . . . Launcher 26 | . 2 24 Special 3 | . . 3 Kinetic 20 | 2 18 . Thermal 42 | 2 19 21 Explosive 26 | . 2 24 Electromagnetic 10 | . 7 3 Robot Hit Streak 17 | 3 17 17 Robot Miss Streak 3 | . 1 3 Penetration Max . | . . . Secondary Targets . | . . . Shots Hit Robots 68 | 3 33 32 Core Hits 45 | 2 18 25 Critical Hits . | . . . Critical Kills . | . . . Critical Parts Destroyed . | . . . Melee Attacks . | . . . Impact . | . . . Slashing . | . . . Piercing . | . . . Sneak Attacks . | . . . Combat Hostiles . | . . . Follow-up Attacks . | . . . Damage Inflicted 1099 | 32 393 674 Guns 621 | 32 339 250 Cannons . | . . . Explosions 456 | . 54 402 Melee . | . . . Ramming . | . . . Kinetic 107 | 10 97 . Thermal 441 | 22 182 237 Explosive 456 | . 54 402 Electromagnetic 95 | . 60 35 Impact . | . . . Slashing . | . . . Piercing . | . . . Highest Corruption 1 | . 1 1 Average Corruption 1 | . 1 1 Corruption Purged . | . . . Effects 1 | . 1 . Message Errors 1 | . 1 . Overload Shots . | . . . Overflow Damage 4 | . 4 . Projectiles . | . . . Explosions 4 | . 4 . Melee . | . . . Knockbacks . | . . . Impact . | . . . Kinetic . | . . . Secondary . | . . . Self-Inflicted Damage 33 | . 13 20 Shots 3 | . 1 2 Rammed 1 | . 1 . Targets Rammed 1 | . 1 . Kicked . | . . . Crushed . | . . . Highest Temperature 106 | 20 106 105 Average Temperature 35 | 12 34 40 Received Heat Transfer 177 | . 90 87 Siege Activations . | . . . Robots Corrupted . | . . . Combat Hostiles . | . . . Parts Fried . | . . . Impact Corruptions . | . . . Robots Melted . | . . . Combat Hostiles . | . . . Parts Melted 1 | . . 1 Heat Transferred 1064 | 50 422 592 Parts Sabotaged . | . . . Parts Stolen . | . . . Parts Stripped . | . . . Power Chain Reactions . | . . . Missiles Intercepted . | . . . Alert | -11 -10 -10 ------- Run | Scr Mat Min Peak Influence 168 | 5 168 82 Initial 3 | . 3 2 Average 53 | 2 63 46 Maximum Alert Level . | . . . Low Security (%) 100 | 100 100 100 Level 1 . | . . . Level 2 . | . . . Level 3 . | . . . Level 4 . | . . . Level 5 . | . . . High Security . | . . . Max Security . | . . . Squads Dispatched 1 | . 1 . Investigation . | . . . Extermination . | . . . Reinforcement 1 | . 1 . Assault . | . . . Garrison . | . . . Intercept . | . . . Construction Impeded . | . . . Haulers Reinforced . | . . . Stealth | -11 -10 -10 --------- Run | Scr Mat Min Distress Signals 1 | . 1 . Communications Jammed . | . . . Distress Signals . | . . . Times Spotted 22 | . 11 11 Peak Tracking Total 5 | . 4 5 Tactical Retreats 1 | . . 1 Traps | -11 -10 -10 ------- Run | Scr Mat Min Traps Triggered 1 | . 1 . Indirectly . | . . . Trap Hack Attempts . | . . . Triggered . | . . . Disarmed . | . . . Reprogrammed . | . . . Reused . | . . . Traps Extracted . | . . . Installed . | . . . Triggered . | . . . Machines | -11 -10 -10 ---------- Run | Scr Mat Min Machines Disabled 2 | . . 2 Max in Single Turn 2 | . . 2 Machines Sabotaged . | . . . Garrisons Compromised . | . . . Overloaded Fab Kills . | . . . Fab Network Shutdowns . | . . . Hacking | -11 -10 -10 --------- Run | Scr Mat Min Machines Accessed . | . . . Terminals . | . . . Fabricators . | . . . Repair Stations . | . . . Recycling Units . | . . . Scanalyzers . | . . . Garrison Access . | . . . Total Hacks . | . . . Successful . | . . . Failed . | . . . Catastrophic . | . . . Database Lockouts . | . . . Manual . | . . . Terminals . | . . . Fabricators . | . . . Repair Stations . | . . . Recycling Units . | . . . Scanalyzers . | . . . Garrison Access . | . . . Terminal Hacks . | . . . Fabricator Hacks . | . . . Repair Station Hacks . | . . . Recycling Unit Hacks . | . . . Scanalyzer . | . . . Garrison Access Hacks . | . . . Unauthorized Hacks . | . . . Terminals . | . . . Fabricators . | . . . Repair Stations . | . . . Recycling Units . | . . . Scanalyzers . | . . . Garrison Access . | . . . Data Cores Recovered 1 | . 1 . Used . | . . . Hacking Detections . | . . . Full Trace Events . | . . . Feedback Events . | . . . Feedback Blocked . | . . . Robot Schematics Acquired . | . . . Robots Built . | . . . Matter . | . . . Time . | . . . Total Robot Build Rating . | . . . Part Schematics Acquired . | . . . Parts Built . | . . . Matter . | . . . Time . | . . . Total Part Build Rating . | . . . Parts Repaired . | . . . Time . | . . . Parts Recycled . | . . . Recycled Matter . | . . . Retrieved Matter . | . . . Retrieved Components . | . . . Parts Scanalyzed . | . . . Part Schematics Acquired . | . . . Parts Damaged . | . . . Bothacking | -11 -10 -10 ------------ Run | Scr Mat Min Used RIF Installer . | . . . Robots Hacked . | . . . Non-combat . | . . . Combat . | . . . Robot Hacks Applied . | . . . Relay Couplers Released . | . . . Robots Rewired . | . . . Allies Hacked . | . . . Hacks Repelled . | . . . Allies | -11 -10 -10 -------- Run | Scr Mat Min Total Allies . | . . . Largest Group . | . . . Highest-Rated Group . | . . . Highest-Rated Ally . | . . . Total Orders . | . . . Ally Attacks . | . . . Total Damage . | . . . Kills . | . . . Allies Corrupted . | . . . Allies Melted . | . . . Intel | -11 -10 -10 ------- Run | Scr Mat Min Robot Analysis Total . | . . . Derelict Logs Recovered . | . . . Drone Launches . | . . . Drone Recoveries . | . . . Exploration | -11 -10 -10 ------------- Run | Scr Mat Min Turns Passed 883 | 84 601 198 Spaces Moved 363 | 45 262 56 Core 4 | 4 . . Treads 354 | 36 262 56 Legs . | . . . Wheels 5 | 5 . . Hover . | . . . Flight . | . . . Fastest Speed 50 | 50 160 160 Average Speed 177 | 143 185 165 Slowest Speed 200 | 160 200 180 Overloaded Moves . | . . . Propulsion Burnouts . | . . . Robots Hopped . | . . . Cave-ins Triggered . | . . . Exploration Rate (%) 19 | 3 44 12 Regions Visited 2 Branch Regions 1 Pre-discovered Areas . | . . . Known Exits Taken . | . . . Unknown Exits Taken 2 | 1 1 . Scrap Searched . | . . . Spaces Dug 5 | . 5 . Terrain Destroyed 75 | . 13 62 Melee . | . . . Projectile . | . . . AOE 75 | . 13 62 Terrain Rammed . | . . . Walls Destroyed . | . . . Machines Disabled . | . . . Actions | -11 -10 -10 --------- Run | Scr Mat Min Total 500 | 59 331 110 Wait 17 | . 14 3 Move 361 | 44 261 56 Hop . | . . . Pick Up 17 | 3 13 1 Fast Attach 14 | 7 6 1 Attach 13 | 1 2 10 Detach 1 | . 1 . Swap 3 | . 3 . Drop 7 | 2 5 . Fire 66 | 2 25 39 Melee . | . . . Ram . | . . . Kick . | . . . Crush 1 | . 1 . Escape Stasis . | . . . Rewire . | . . . Trap . | . . . Miscellaneous . | . . . Route ------- -11/Scrapyard -10/Materials (discovered 2 exits: [*Mat] / [*Min]) -10/Mines History --------- Turn | Location | Event 7 | -11/Scrapyard | Discovered new exit (range 16) 85 | -11/Scrapyard | Entered Materials 314 | -10/Materials | Build established: Mutant 425 | -10/Materials | Discovered new exit (range 15) 459 | -10/Materials | Lost 3 parts (1n2w) 625 | -10/Materials | Discovered new exit (range 15) 686 | -10/Materials | Entered Mines 761 | -10/Mines | Assembled infested the area 766 | -10/Mines | Assisted by a Guerilla fighting off Assembled 790 | -10/Mines | Core integrity fell below 50% 826 | -10/Mines | Core integrity fell below 20% 863 | -10/Mines | Lost 11 parts (1p3n3u4w) 884 | -10/Mines | Destroyed by as-28323 with Assembled Rifle Last Messages --------------- 00832_ Imp. Treads destroyed. 00832_ D-53 Grenadier destroyed. 00833_ The unstable cave ceiling collapses. 00836_ as-97622 destroyed. 00837_ The unstable cave ceiling collapses. 00838_ as-45109 destroyed. 00839_ The unstable cave ceiling collapses. 00847_ Acquired 5 matter. 00848_ The unstable cave ceiling collapses. 00852_ Acquired Com. Wheel. 00854_ The unstable cave ceiling collapses. 00856_ Acquired Lgt. Nuclear Core. 00857_ The unstable cave ceiling collapses. 00871_ as-24068 destroyed. 00871_ K-01 Serf destroyed. 00872_ The unstable cave ceiling collapses. 00875_ T-07 Excavator destroyed. 00878_ The unstable cave ceiling collapses. 00880_ U-05 Engineer builds a Wall. 00881_ Ion Engine severed. Map ----- +----------------------------------------------------+ | | | | | | | | | | | | | | | | | | | | | | | | | | | | | | | | | | | ????????????????????????##???????????????????????? | | ################????#### ####????????????????????? | | #????# # ##???????????????????? | | #????# # ##??????????????????? | | """ = #???## # # #??????????????????? | | """ ##### # ### # #??????????????????? | | """ * # #??????????????????? | | #####= # # # #??????????????????? | | """ "" "" #???### #@ #??????????????????? | | """ """ "" #????# # #aa #??????????????????? | | """ """ """ #????## ##!a # #??????????????????? | | #????# ###%#a# #??????????????????? | | """ """ """ #????# #=# #??????????????????? | | """ """ """ #????# =|# #??????????????????? | | """ """ """ #????# #??????????????????? | | ??? #???? % # #??????????????????? | | ?????###########????# ??????????????????? | | ???????????????????? ##?????????????????? | | ????????????????????# % # #??????????????????? | | ????????????????????# # ###??????????????????? | | ?????????????????????#### ###????????????????????? | | ????????????????????????#u???????????????????????? | | ????????????????????????? ???????????????????????? | | ?????????????????????????%???????????????????????? | | ?????????????????????????"???????????????????????? | | ????????????????????????? ???????????????????????? | | ?????????????????????????#???????????????????????? | | ?????????????????????????????????????????????????? | | ?????????????????????????????????????????????????? | | ?????????????????????????????????????????????????? | | ?????????????????????????????????????????????????? | | ?????????????????????????????????????????????????? | | ?????????????????????????????????????????????????? | +----------------------------------------------------+ Best States ------------- Heat Dissipation 47 Energy Generation 10 Energy Capacity 250 Matter Stores 300 Matter Capacity 300 Sight Range 16 Terrain Scan Density 10 Armor Coverage 150 Evasion (%) 42 Armor Integrity Analysis 33 Recoil Reduction 2 Item Schematics ----------------- None Robot Schematics ------------------ None Fabricated ------------ Nothing Alien Tech Used ----------------- None Achievements -------------- None Challenges ------------ None Game ------ Seed DisposableTractorRegenerator Manual? 0 Play Time 00:10:39 Cumulative 1072.8 hours Start 2021.01.11 @ 17:55:34 End 2021.01.11 @ 18:03:56 Sessions 1 Manual Loads 0 Difficulty Rogue Special Mode None Game No. 667 Rogue 667 Adventurer 0 Explorer 0 Win Type - Total 18 Types 10/1/4/3/0/0/0/0/0 Lore% 90 Gallery% 93 Achievement% 81 Wizard Run 0 Options --------- ASCII 0 Keyboard 0 Movement Mouse Keybinds 0 Fullscreen 2 Font 24/Smallcaps Map View 76x50 Tactical HUD 1 Map Filters NONE Filters NONE Steam X RUN: 080b3f83-d26a-43eb-ba27-795bbc32a590